Workbook

Sheet Log Inactivation
B1: Version 1.3; Author: Guy Schott, P.E., 707-576-2732, guy.schott@waterboards.ca.gov; Updated 5/25/2020
B3: Disinfection Log Inactivation of
B4: Virus, Giardia Lamblia Cysts and Cryptosporidium
B8: Model 1 | C8: Chlorine Disinfection - Virus and Giardia | I8: Model 3 | J8: Chloramine Disinfection - Virus and Giardia
B9: Enter operational and water quality parameters: | I9: Enter operational and water quality parameters:
B10: Flow Rate | C10: 800 | D10: gpm | E10: Results: | I10: Flow Rate | J10: 500 | K10: gpm | L10: Results:
B11: Reactor 1 Volume | C11: 115736 | D11: gallons | E11: Reactor 1 Effective Vol. | F11: =IF($C11<=0,"-",C11*C12) -> 46294.4 | G11: gallons | I11: Reactor 1 Volume | J11: 100000 | K11: gallons | L11: Reactor 1 Effective Vol. | M11: =IF(J11<=0,"-",J11*J12) -> 10000 | N11: gallons
B12: Baffling Factor | C12: 0.4 | D12: t10/T | E12: Reactor 2 Effective Vol. | F12: =IF($C13<=0,"-",C13*C14) -> - | G12: gallons | I12: Baffling Factor | J12: 0.1 | K12: t10/T | L12: Reactor 2 Effective Vol. | M12: =IF(J13<=0,"-",J13*J14) -> - | N12: gallons
B13: Reactor 2 Volume | C13: 0 | D13: gallons | E13: Total Effective Time | F13: =SUM(F11:F12)/C10 -> 57.868 | G13: minutes | I13: Reactor 2 Volume | J13: 0 | K13: gallons | L13: Total Effective Time | M13: =SUM(M11:M12)/J10 -> 20 | N13: minutes
B14: Baffling Factor | C14: 0.9 | D14: t10/T | E14: CT (calculated) | F14: =IF(OR($C10<=0,$C17<=0, C11+C13<=0),"-",(C11*C12)/C10*C17+(C13*C14)/C10*C17) -> 28.934 | G14: mg/L∙min | I14: Baffling Factor | J14: 0.9 | K14: t10/T | L14: CT (calculated) | M14: =IF(OR(J10<=0,J17<=0, J11+J13<=0),"-",(J11*J12)/J10*J17+(J13*J14)/J10*J17) -> 4 | N14: mg/L∙min
B15: pH (Giardia) | C15: 8 | D15: unit | E15: Log Inactivation Results | I15: pH | J15: (6-9) | K15: unit | L15: Log Inactivation Results
B16: Temperature | C16: 10 | D16: oC | E16: Virus | F16: =IF(OR(C10<=0,C16<=0,C17<=0,C11+C13<=0),"-",IF(IFERROR(4*(F14/(-0.00000664*C16^5+0.00046958*C16^4-0.01262061*C16^3+0.17065982*C16^2-1.56683015*C16+13.11747036)),"-")>=5,">5.0",IFERROR(IF(C16<=5,4*F14/(-0.9*C16+12.5),IF(C16<=15,4*F14/(-0.4*C16+10),4*F14/(-0.2*C16+7))),"-"))) -> >5.0 | G16: log | I16: Temperature | J16: 10 | K16: oC | L16: Virus | M16: =IF(AE16>5, ">5.0",AE16) -> 0.492431996 | N16: log | AE16: =IF(OR(J10<=0,M14="-"),"-",IF(J16<=10,(-2.11111*10^-6*J16^2+1.49667*10^-4*J16+1.07244*10^-3)*M14+(-2*10^-5*J16^2+0.0001*J16+0.484),IF(J16<=12,(1.815*10^-4*J16+5.43*10^-4)*M14+(0.0002*J16+0.4814),(2.18115*10^-6*J16^3-1.07089*10^-4*J16^2+1.96496*10^-3*J16-9.20665*10^-3)*M14+(-3*10^-6*J16^3+7*10^-5*J16^2+0.0004*J16+0.4736)))) -> 0.492431996
B17: Chlorine Residual | C17: 0.5 | D17: mg/L | E17: Giardia cysts | F17: =IF(OR(C10<=0,C16<=0,C17<=0,C15<=5,F14="-"),"-",IF(F14/ROUNDUP(ct(C16,C15,C17)*1,0)*1>5,">5.0",F14/ROUNDUP(ct(C16,C15,C17)*1,0)*1)) -> 0.5673333333 | G17: log | I17: Chlorine Residual | J17: 0.2 | K17: mg/L | L17: Giardia cysts | M17: =IF(AE17>5, ">5.0",AE17) -> 0.006479422865 | N17: log | AE17: =IF(OR(J10<=0,M14="-"),"-",IF(J16<=5,M14/((-400*J16+4200)/3),M14/((0.00507*J16^4-0.2752*J16^3+4.88559*J16^2-104.44259*J16+2632.3837)/3))) -> 0.006479422865 | BG17: Virus Table for 4 log
AC18: Log Virus | AD18: CT Virus | AE18: 1 | AF18: 2 | AH18: 1-5, Log | AI18: 1 | AJ18: 2 | AL18: 5-20, Log | AM18: 1 | AN18: 2 | AP18: 20-25, Log | BG18: 1 | BH18: 2 | BI18: 3 | BJ18: 4 | BK18: 5 | BL18: 6 | BM18: 7 | BN18: 8 | BO18: 9 | BP18: 10 | BQ18: 11 | BR18: 12 | BS18: 13 | BT18: 14 | BU18: 15 | BV18: 16 | BW18: 17 | BX18: 18 | BY18: 19 | BZ18: 20 | CA18: 21 | CB18: 22 | CC18: 23 | CD18: 24 | CE18: 25
AC19: =IF(OR($C22<=0,C29<=0),"-", 4*F26/AD19) -> 0.6374501992 | AD19: =IF(C28<1,"-",HLOOKUP(C28,$BG$18:$CE$19,2)) -> 25.1 | AE19: =-0.00001929*C28^2-0.00000929*C28-0.000392 -> -0.0024139 | AF19: =0.00093714*C28^2+0.00328714*C28+0.068062 -> 0.1946474 | AG19: 1.4244 | AH19: =IF(C22<=0,"-",AE19*F26^2+AF19*F26+AG19) -> 2.1643672 | AI19: =-0.00000004*C28^4+0.00000159*C28^3-0.00004328*C28^2+0.00030334*C28-0.00156149 -> -0.00166609 | AJ19: =-0.00002*C28^3+0.001177*C28^2-0.007005*C28+0.117161 -> 0.144811 | AK19: 1.4248 | AL19: =IF(C22<=0,"-",AI19*F26^2+AJ19*F26+AK19) -> 1.97738656 | AM19: =-0.000171*C28^2+0.006151*C28-0.061302 -> -0.016892 | AN19: =0.002057*C28^2-0.065201*C28+0.770529 -> 0.324219 | AO19: 1.426585 | AP19: =IF(C22<=0,"-",AM19*F26^2+AN19*F26+AO19) -> 2.453189 | BG19: 50.1 | BH19: 45.9 | BI19: 41.8 | BJ19: 37.6 | BK19: 33.4 | BL19: 31.7 | BM19: 30.1 | BN19: 28.4 | BO19: 26.8 | BP19: 25.1 | BQ19: 23.4 | BR19: 21.7 | BS19: 20.1 | BT19: 18.4 | BU19: 16.7 | BV19: 15.9 | BW19: 15 | BX19: 14.2 | BY19: 13.3 | BZ19: 12.5 | CA19: 11.7 | CB19: 10.9 | CC19: 10 | CD19: 9.2 | CE19: 8.4
B20: Model 2 | C20: Chlorine Dioxide Disinfection - Virus, Giardia & Crypto | I20: Model 4 | J20: Ozone Disinfection - Virus, Giardia & Crypto
B21: Enter operational and water quality parameters: | I21: Enter operational and water quality parameters:
B22: Flow Rate | C22: 500 | D22: gpm | E22: Results: | I22: Flow Rate | J22: 500 | K22: gpm | L22: Results:
B23: Reactor 1 Volume | C23: 100000 | D23: gallons | E23: Reactor 1 Effective Vol. | F23: =IF(C23<=0,"-",C23*C24) -> 10000 | G23: gallons | I23: Reactor 1 Volume | J23: 25000 | K23: gallons | L23: Reactor 1 Effective Vol. | M23: =IF(J23<=0,"-",J23*J24) -> 2500 | N23: gallons
B24: Baffling Factor | C24: 0.1 | D24: t10/T | E24: Reactor 2 Effective Vol. | F24: =IF(C25<=0,"-",C25*C26) -> - | G24: gallons | I24: Baffling Factor | J24: 0.1 | K24: t10/T | L24: Reactor 2 Effective Vol. | M24: =IF(J25<=0,"-",J25*J26) -> - | N24: gallons
B25: Reactor 2 Volume | C25: 0 | D25: gallons | E25: Total Effective Time | F25: =SUM(F23:F24)/C22 -> 20 | G25: minutes | I25: Reactor 2 Volume | J25: 0 | K25: gallons | L25: Total Effective Time | M25: =SUM(M23:M24)/J22 -> 5 | N25: minutes
B26: Baffling Factor | C26: 0.9 | D26: t10/T | E26: CT (calculated) | F26: =IF(OR(C22<=0,C29<=0, C23+C25<=0),"-",(C23*C24)/C22*C29+(C25*C26)/C22*C29) -> 4 | G26: mg/L∙min | I26: Baffling Factor | J26: 0.9 | K26: t10/T | L26: CT (calculated) | M26: =IF(OR(J22<=0,J29<=0, J23+J25<=0),"-",(J23*J24)/J22*J29+(J25*J26)/J22*J29) -> 2 | N26: mg/L∙min
B27: pH | C27: (6-9) | D27: unit | E27: Log Inactivation Results | I27: pH | J27: (6-9) | K27: unit | L27: Log Inactivation Results
B28: Temperature | C28: 10 | D28: oC | E28: Virus | F28: =IF(OR(C22<=0,F26="-"),"-", IF(F26>AD19,">4.0",IF(C28<=5,AH19,IF(C28<=20,AL19,AP19)))) -> 1.97738656 | G28: log | I28: Temperature | J28: 10 | K28: oC | L28: Virus | M28: =IF(OR(J22<=0,M26="-"),"-",IF(2*M26/(0.9284*EXP(-0.069*J28))>5,">5.0",2*M26/(0.9284*EXP(-0.069*J28)))) -> >5.0 | N28: log
B29: ClO2 Residual | C29: 0.2 | D29: mg/L | E29: Giardia cysts | F29: =IF(OR(C22<=0,F26="-"),"-",IF(AND(C28<=5,F26/(-3.07*C28+24.07)>5),">5.0",IF(C28<=5,F26/(-3.07*C28+24.07),IF(AND(C28>5,F26/(-0.2561*C28+10.137)>5),">5.0",F26/(-0.2561*C28+10.137))))) -> 0.5279831045 | G29: log | I29: Ozone Residual | J29: 0.4 | K29: mg/L | L29: Giardia cysts | M29: =IF(OR(J22<=0,M26="-"),"-",IF(AND(J28<=8,1000*M26/(6.19*J28^2-118*J28+1087)> 5),"> 5.0",IF(J28<=8,1000*M26/(6.19*J28^2-118*J28+1087),IF(AND(J28>8,J28<=15,1000*M26/(0.44*J28^2-41.3*J28+844)>5),"> 5.0",IF(AND(J28>8,J28<=15),1000*M26/(0.44*J28^2-41.3*J28+844),IF(1000*M26/(-0.076*J28^2-12.53*J28+520.7)>5,"> 5.0",1000*M26/(-0.076*J28^2-12.53*J28+520.7))))))) -> 4.210526316 | N29: log
B30: MRDL: 0.8 mg/L Cl02 | E30: Cryptosporidium | F30: =IF(OR(C22<=0,F26="-"),"-",IF(0.001506*(1.09116^C28)*F26>4,">4.0",0.001506*(1.09116^C28)*F26)) -> 0.01441349609 | G30: log | I30: Bromate monitoring required. | L30: Cryptosporidium | M30: =IF(OR(J22<=0,M26="-"),"-",IF(0.0397*(1.09757^J28)*M26>4,">4.0",0.0397*(1.09757^J28)*M26)) -> 0.2014386404 | N30: log
